bitfinex/quotes_ETHUSD_20251012
["timestamp","ask_amount","ask_price","bid_price","bid_amount"]
[1760297512387,0.4411,4146.3,4146.1,2.41190414]
[1760297512589,0.4411,4146.2,4145.9,0.12]
[1760297513177,0.4411,4146.1,4145.9,2.53202067]
[1760297513394,0.4411,4146.0,4145.9,2.53202067]
[1760297514210,0.4411,4146.0,4145.9,0.12]
[1760297514378,0.6336,4145.7,4145.0,0.122]
[1760297514583,0.7928,4145.6,4145.0,2.53450315]
[1760297514813,0.4411,4145.5,4145.0,0.122]
[1760297514977,2.3611,4145.5,4145.0,0.122]
[1760297515378,0.4411,4145.5,4145.0,2.53450052]
[1760297515704,0.4411,4145.4,4145.1,2.41248458]
[1760297516426,0.4411,4145.4,4145.0,2.53452667]
[1760297516630,0.4411,4145.3,4145.0,0.122]
[1760297517218,0.4411,4145.2,4145.0,0.122]
[1760297517513,0.4411,4145.2,4145.0,2.53453552]
[1760297517712,0.3517,4145.6,4145.0,2.53453552]
[1760297518013,0.4411,4145.1,4145.0,2.53453552]
[1760297518382,0.4411,4145.1,4145.0,0.122]
[1760297518879,0.4411,4145.1,4145.0,2.53454523]
[1760297519080,0.4411,4145.1,4145.0,0.122]
[1760297519283,5.52718703,4145.1,4145.0,0.002]
[1760297519910,3.04620344,4144.9,4144.8,0.002]
[1760297520107,4.96620344,4144.9,4144.8,0.002]
[1760297520310,5.40730344,4144.9,4144.8,0.002]
[1760297520513,2.9947,4144.9,4144.8,0.002]
[1760297520717,5.40730344,4144.9,4144.8,0.002]
[1760297521497,2.9947,4144.9,4144.8,0.002]
[1760297521811,2.3611,4144.9,4144.8,0.002]
[1760297524187,2.9947,4144.9,4144.8,0.002]
[1760297524393,2.3611,4144.9,4144.8,0.002]
[1760297525614,1.92,4144.9,4144.8,2.41466164]
[1760297525811,1.92,4144.9,4144.8,2.53466164]
[1760297528197,1.92,4144.9,4144.8,3.02980138]
[1760297529696,0.12,4145.8,4144.9,2.41260344]
[1760297529916,0.12,4146.1,4145.4,0.12]
[1760297530313,0.4411,4146.2,4145.8,2.4120288]
[1760297530505,0.4411,4146.1,4145.8,2.4120288]
[1760297530713,0.4411,4146.1,4145.9,2.41201856]
[1760297530908,0.12,4146.4,4145.8,2.41206795]
[1760297531109,2.9947,4146.3,4145.8,2.41206795]
[1760297531337,0.4411,4146.2,4145.8,2.41206795]
[1760297531535,0.6336,4146.3,4145.8,2.41206795]
[1760297531838,0.4411,4146.2,4145.8,2.41206795]
[1760297532005,0.6336,4146.3,4145.9,2.41201022]
[1760297532199,0.4411,4146.1,4145.9,2.41201022]
[1760297532818,0.5611,4146.4,4146.0,2.41191955]
[1760297533024,0.4411,4146.3,4146.0,2.41191955]
[1760297533226,0.4411,4146.2,4145.7,0.12]
[1760297533533,0.4411,4146.1,4145.8,2.412035]
[1760297533736,0.4411,4146.1,4145.9,2.41200965]
[1760297534046,0.001,4146.5,4145.1,0.3292]
[1760297534215,0.001,4146.5,4146.2,2.41179388]
[1760297534538,0.001,4146.5,4146.3,2.41177652]
[1760297534841,0.4421,4146.5,4146.3,2.41177652]
[1760297535041,0.001,4146.5,4146.3,2.41177652]
[1760297535245,0.4411,4146.4,4146.3,2.41177652]
[1760297535818,0.4411,4146.4,4146.2,2.41183488]
[1760297536016,2.8529101,4146.3,4145.6,2.41218979]
[1760297536258,3.04551423,4146.1,4144.6,0.002]
[1760297536430,0.2317,4145.7,4145.4,0.12]
[1760297536625,0.4411,4145.6,4145.4,2.53231025]
[1760297537010,0.4411,4145.6,4145.5,2.41225425]
[1760297537845,0.4742,4145.9,4145.5,2.41225425]
[1760297538010,0.4742,4145.9,4145.7,2.41212234]
[1760297538211,0.001,4146.1,4145.9,2.41200804]
[1760297538437,0.001,4146.1,4145.8,2.53206095]
[1760297538841,0.001,4146.1,4145.8,0.12]
[1760297539146,0.001,4146.1,4145.9,2.41197466]
[1760297539935,0.001,4146.1,4145.8,2.53205986]
[1760297540235,0.4752,4146.1,4145.8,2.53205986]
[1760297540418,0.4742,4146.0,4145.8,0.12]
[1760297540612,0.001,4146.1,4146.0,2.53196333]
[1760297541720,0.001,4146.1,4146.0,3.34056352]
[1760297549029,0.001,4146.1,4146.0,3.01136352]
[1760297549232,0.001,4146.1,4146.0,3.34056352]
[1760297552835,0.001,4146.1,4146.0,2.53196333]
[1760297553036,0.4483,4146.1,4144.9,2.41260344]
[1760297553235,0.4483,4146.1,4145.9,2.41200238]
[1760297553440,0.4473,4146.0,4145.8,2.41206406]
[1760297553668,0.001,4146.1,4145.7,2.41213757]
[1760297553669,0.6688,4145.9,4145.7,2.41213757]
[1760297553843,0.4473,4145.8,4144.8,0.002]
[1760297554162,0.4473,4145.8,4145.7,2.41213787]
[1760297554362,0.4473,4145.8,4144.8,0.002]
[1760297554571,0.4473,4145.8,4145.4,2.41229928]
[1760297554758,0.4473,4145.7,4145.4,2.41227503]
[1760297554957,0.6346,4146.1,4144.9,2.41260344]
[1760297555271,0.6346,4146.1,4144.8,0.002]
[1760297555272,0.6346,4146.1,4145.8,2.41206731]
[1760297555474,0.2215,4145.9,4145.7,2.41212337]
[1760297555771,0.4473,4145.8,4145.6,2.41219606]
[1760297555976,0.4473,4145.8,4145.7,2.41213787]
[1760297557439,0.2215,4145.9,4145.7,2.41213787]
[1760297557765,0.4473,4145.8,4145.7,2.41213787]
[1760297558361,0.001,4146.1,4145.0,0.002]
[1760297558562,0.001,4146.1,4146.0,2.41196333]
[1760297560471,0.001,4146.1,4146.0,2.74116333]
[1760297561172,0.001,4146.1,4146.0,2.41196333]
[1760297562968,0.001,4146.1,4146.0,2.53196333]
[1760297568554,0.001,4146.1,4146.0,2.86116333]
[1760297568754,0.001,4146.1,4146.0,3.38848364]
[1760297571864,0.001,4146.1,4146.0,3.05928364]
[1760297572183,0.001,4146.1,4146.0,2.53196333]
[1760297574687,0.4751,4146.1,4146.0,2.53196333]
[1760297575259,0.4751,4146.1,4146.0,0.12]
[1760297575592,0.4751,4146.1,4145.8,0.12]
[1760297575792,0.2186,4145.9,4145.8,0.12]
[1760297575989,0.2186,4145.9,4145.0,0.002]
[1760297576168,0.4741,4145.8,4145.7,2.41213279]
[1760297576568,0.001,4146.1,4145.5,0.12]
[1760297576769,0.001,4146.1,4145.9,2.41201061]
[1760297577093,0.4751,4146.1,4145.9,2.41201061]
[1760297577290,0.001,4146.1,4146.0,2.41196333]
[1760297577895,0.4751,4146.1,4146.0,2.41196333]
[1760297578092,0.4751,4146.1,4146.0,2.86116333]
[1760297578093,0.001,4146.1,4146.0,2.86116333]
[1760297578279,0.001,4146.1,4146.0,2.53196333]
[1760297584079,0.001,4146.1,4146.0,0.12]
[1760297584080,0.4751,4146.1,4146.0,0.12]
[1760297584305,0.4751,4146.1,4145.7,2.53212605]
[1760297584480,0.2186,4145.8,4145.7,2.53212605]
[1760297584798,0.001,4146.1,4145.8,2.41207694]
[1760297584997,0.001,4146.1,4146.0,2.41196333]
[1760297587704,0.4751,4146.1,4146.0,2.41196333]
[1760297588905,0.4751,4146.1,4145.9,2.41200258]
[1760297589202,0.001,4146.1,4145.7,0.12]
[1760297589506,0.4741,4146.0,4145.9,2.41198391]
[1760297591008,0.001,4146.1,4145.9,2.41198391]
[1760297591214,0.001,4146.1,4146.0,2.41196333]
[1760297592505,0.4751,4146.1,4146.0,2.41196333]
[1760297595412,0.001,4146.1,4146.0,2.41196333]
[1760297596632,0.001,4146.1,4146.0,2.92727805]
[1760297598530,0.4348,4146.1,4146.0,2.41196333]
[1760297598703,0.4348,4146.1,4145.0,0.002]
[1760297598893,0.4348,4146.1,4145.2,2.41242427]
[1760297599213,0.4348,4146.1,4146.0,2.41196333]
[1760297599625,0.4348,4146.1,4145.9,2.41201092]
[1760297599824,0.4338,4146.0,4145.9,2.41201092]
[1760297600214,0.4338,4146.0,4145.7,2.41211732]
[1760297600523,0.6669,4145.9,4145.7,2.41211732]
[1760297600721,0.4338,4145.8,4145.6,2.41218071]
[1760297601017,0.2331,4145.9,4145.7,2.41213787]
[1760297601218,0.2331,4145.9,4145.1,2.41248703]
[1760297601726,0.4338,4145.8,4145.7,2.41213787]
[1760297602231,0.4338,4145.8,4145.0,0.002]
[1760297602420,0.6336,4145.7,4145.0,0.002]
[1760297602623,4.96608703,4145.1,4145.0,0.002]
[1760297603102,5.39988703,4145.1,4145.0,0.002]
[1760297607520,10.59483516,4145.1,4145.0,0.002]
[1760297610438,5.39988703,4145.1,4145.0,0.002]
[1760297615740,10.59483516,4145.1,4145.0,0.002]
[1760297623647,5.39988703,4145.1,4145.0,0.002]
[1760297625624,2.41196455,4146.0,4145.0,0.002]
[1760297625625,0.4386,4145.7,4145.0,0.002]
[1760297625823,0.12,4145.6,4145.0,0.002]
[1760297626061,0.341,4145.9,4145.4,0.12]
[1760297626243,0.341,4145.9,4145.4,2.5322629]
[1760297626244,0.4386,4145.8,4145.4,2.5322629]
[1760297626449,0.4386,4145.7,4145.5,2.41225268]
[1760297627143,0.341,4145.9,4145.5,2.41225268]
[1760297627352,0.4386,4145.8,4145.4,2.53229669]
[1760297627527,0.4545,4145.7,4145.4,0.12]
[1760297627733,0.4545,4145.6,4145.4,0.12]
[1760297628656,0.4545,4145.6,4145.4,2.53229333]
[1760297629372,0.4545,4145.6,4145.4,0.12]
[1760297629671,0.4545,4145.6,4145.4,2.53230602]
[1760297629845,0.341,4145.9,4145.4,0.12]
[1760297630043,0.6336,4145.4,4145.0,0.002]
[1760297630245,7.11494813,4145.1,4145.0,0.002]
[1760297630449,1.92,4145.1,4145.0,0.002]
[1760297630665,2.3745,4145.1,4145.0,0.002]
[1760297631354,4.78698703,4145.1,4145.0,0.002]
[1760297631559,10.61553516,4145.1,4145.0,0.002]
[1760297633541,10.92406456,4145.1,4145.0,0.002]
[1760297633737,11.22273908,4145.1,4145.0,0.002]
[1760297635174,3.04620344,4144.9,4144.6,0.002]
[1760297635376,5.27473284,4144.9,4144.6,0.002]
[1760297635540,2.41277807,4144.6,4144.5,0.002]
[1760297635871,3.04643628,4144.5,4144.4,1e-08]
[1760297636052,5.72946568,4144.5,4144.4,1e-08]
[1760297636444,10.92441381,4144.5,4144.4,1e-08]
[1760297636965,2.5536,4142.8,4141.8,0.002]
[1760297637170,1.92,4143.0,4142.3,2.41408446]
[1760297637372,0.6851,4142.9,4142.3,2.41408446]
[1760297637541,0.15476875,4142.8,4142.3,2.41408446]
[1760297637738,7.60854297,4143.2,4142.4,2.4140478]
[1760297637955,0.2223,4143.1,4142.4,2.4140478]
[1760297638154,0.2223,4143.6,4142.4,0.48282115]
[1760297638381,5.41724813,4143.6,4142.5,2.41398189]
[1760297638674,2.41352351,4143.4,4142.6,2.41393818]
[1760297639057,2.41353793,4143.3,4142.6,2.41393818]
[1760297639281,1.92,4143.5,4141.9,0.4716]
[1760297639482,2.41367154,4143.1,4142.0,2.41429261]
[1760297639782,2.41371207,4143.0,4142.3,2.41406712]
[1760297639984,2.41371207,4143.0,4142.1,0.28878926]
[1760297640170,0.12,4143.1,4142.4,0.12]
[1760297640378,2.04,4142.9,4142.2,0.12]
[1760297640751,2.04,4142.9,4142.2,2.53417442]
[1760297641088,0.12,4142.9,4142.4,2.41404463]
[1760297641290,0.12,4142.9,4142.2,2.53417027]
[1760297641651,2.04,4142.9,4142.2,2.53417027]
[1760297642159,0.12,4142.9,4142.3,2.41410509]
[1760297642359,0.12,4142.9,4142.2,0.12]
[1760297642682,0.2223,4143.9,4142.7,0.12]
[1760297642850,2.53325055,4143.8,4142.8,2.41382639]
[1760297643053,0.12,4143.8,4143.2,2.41354556]
[1760297643264,0.12,4143.8,4143.1,0.12]
[1760297643265,0.12,4143.8,4143.3,2.41352489]
[1760297643582,2.04,4143.8,4143.1,0.12]
[1760297643783,2.04,4143.8,4143.1,2.78701729]
[1760297643985,2.04,4143.8,4143.1,2.78701754]
[1760297644180,2.04,4143.8,4143.3,2.41347752]
[1760297644353,2.04,4143.8,4143.1,0.373378]
[1760297644554,4.45325136,4143.8,4143.1,0.373378]
[1760297644782,2.04,4143.8,4143.1,0.12]
[1760297644964,4.45326625,4143.8,4143.1,0.12]
[1760297645285,2.04,4143.8,4143.1,0.12]
[1760297645651,0.69655976,4144.6,4143.1,0.12]
[1760297645855,0.12,4144.4,4143.7,0.12]
[1760297646079,0.12,4144.4,4143.8,2.41323472]
[1760297646676,2.53290033,4144.4,4143.7,0.12]
[1760297646979,0.12,4144.4,4143.7,2.53329587]
[1760297647179,0.12,4144.4,4143.8,2.4132371]
[1760297647887,0.12,4144.4,4143.8,2.4152371]
[1760297648987,0.12,4144.4,4143.9,2.41318079]
[1760297649192,0.12,4144.4,4143.9,2.41314398]
[1760297649687,2.04,4144.4,4143.8,0.002]
[1760297650262,2.53290015,4144.4,4143.8,0.002]
[1760297650570,0.12,4144.4,4143.8,0.002]
[1760297650768,0.12,4144.4,4143.8,2.41524009]
[1760297651167,0.12,4144.4,4143.9,2.41318554]
[1760297651769,2.53290896,4144.4,4143.8,0.002]
[1760297653382,0.12,4144.4,4143.8,2.41523907]
[1760297654192,2.04,4144.4,4143.8,2.41523907]
[1760297654869,2.53289473,4144.4,4143.8,2.41523907]
[1760297655069,2.53289473,4144.4,4143.8,0.002]
[1760297655569,0.12,4144.4,4143.8,0.002]
[1760297655771,0.001,4145.1,4144.3,2.41291196]
[1760297655984,2.04,4144.9,4144.3,2.53291196]
[1760297656997,2.53294958,4144.4,4143.8,0.002]
[1760297657186,4.33296979,4144.3,4143.8,0.002]
[1760297657383,2.53290008,4144.4,4143.8,0.002]
[1760297657765,2.41302016,4144.2,4143.8,0.002]
[1760297658096,0.2223,4143.9,4143.8,0.002]
[1760297659487,4.67548564,4143.9,4143.8,0.002]
[1760297659683,5.30908564,4143.9,4143.8,0.002]
[1760297659869,5.66229421,4143.9,4143.8,0.002]
[1760297661194,3.12910857,4143.9,4143.8,0.002]
[1760297661365,5.18908564,4143.9,4143.8,0.002]
[1760297662074,2.7759,4143.9,4143.8,0.002]
[1760297662477,5.18908564,4143.9,4143.8,0.002]
[1760297665303,5.54229421,4143.9,4143.8,0.002]
[1760297665899,5.54329421,4143.9,4143.8,0.002]
[1760297668206,5.19008564,4143.9,4143.8,0.002]
[1760297669682,5.8866454,4143.9,4143.8,0.002]
[1760297673116,5.66340364,4143.8,4143.3,0.002]
[1760297673323,20.0967255,4143.4,4143.3,0.002]
[1760297673610,20.44993407,4143.4,4143.3,0.002]
[1760297673916,20.79328526,4143.4,4143.3,0.002]
[1760297676919,2.41341938,4143.5,4143.3,0.002]
[1760297677696,2.41336036,4143.6,4143.3,0.002]
[1760297677913,2.41347685,4143.4,4143.3,0.002]
[1760297680422,2.41343232,4143.5,4143.3,0.002]
[1760297680614,2.41347685,4143.4,4143.3,0.002]
[1760297684023,2.41346402,4143.5,4143.3,0.002]
[1760297684223,2.5536,4143.6,4143.3,0.002]
[1760297684407,3.04697274,4143.6,4143.3,0.002]
[1760297684633,0.6336,4143.5,4143.3,0.002]
[1760297684835,2.41347685,4143.4,4143.3,0.002]
[1760297685942,20.44993407,4143.4,4143.3,0.002]
[1760297686142,20.79328526,4143.4,4143.3,0.002]
[1760297687245,20.79186797,4143.4,4143.3,0.002]
[1760297688331,5.66221932,4143.4,4143.3,0.002]
[1760297688643,5.31886813,4143.4,4143.3,0.002]
[1760297689360,2.63650641,4143.9,4143.3,0.002]
[1760297689361,0.001,4143.9,4143.3,0.002]
[1760297689516,6.01532784,4143.9,4143.3,0.002]
[1760297689920,6.01432784,4143.4,4143.3,0.002]
[1760297691653,0.2184,4143.8,4143.3,0.002]
[1760297693320,2.1384,4143.8,4143.3,0.002]
[1760297693957,0.1028,4143.7,4143.3,0.002]
[1760297694425,0.1028,4143.6,4143.3,0.002]
[1760297695254,0.1028,4143.5,4143.3,0.002]
[1760297696856,0.1028,4143.4,4143.3,0.002]
[1760297697030,0.1028,4143.7,4143.3,0.002]
[1760297697539,0.1028,4143.6,4143.3,0.002]
[1760297700965,0.1028,4143.5,4143.3,0.002]
[1760297701644,0.1028,4143.5,4143.3,2.41553245]
[1760297701842,0.1028,4143.5,4143.3,0.002]
[1760297703264,0.001,4143.6,4143.3,0.002]
[1760297703569,2.1428,4143.5,4143.3,0.002]
[1760297703764,0.2228,4143.5,4143.3,0.002]
[1760297704067,0.1028,4143.4,4143.3,0.002]
[1760297704966,0.12,4143.5,4143.3,0.002]
[1760297705169,0.001,4143.6,4143.3,0.002]
[1760297705170,0.001,4143.6,4143.5,2.4134186]
[1760297705373,0.001,4143.6,4143.5,2.8661186]
[1760297706564,0.001,4143.6,4143.5,2.4134186]
[1760297706875,0.001,4143.6,4143.5,2.8661186]
[1760297709852,0.001,4143.6,4143.5,3.4997186]
[1760297710051,0.001,4143.6,4143.5,4.09123632]
[1760297710352,0.001,4144.1,4144.0,3.04672741]
[1760297710353,1e-08,4144.1,4144.0,3.04672741]
[1760297711089,1e-08,4144.1,4144.0,3.49942741]
[1760297711290,1e-08,4144.1,4144.0,5.41942741]
[1760297714401,0.001,4145.9,4145.5,2.41225425]
[1760297714605,0.001,4145.9,4145.5,2.89471284]
[1760297714814,0.001,4145.9,4145.5,3.34741284]
[1760297715119,0.001,4145.9,4145.5,3.46741284]
[1760297718467,1e-08,4146.0,4145.9,2.41202151]
[1760297718874,1e-08,4146.0,4145.9,2.98072151]
[1760297719090,1e-08,4146.0,4145.9,3.58336348]
[1760297719293,1e-08,4146.0,4145.9,4.21696348]
[1760297719790,1e-08,4146.0,4145.9,6.13696348]
[1760297719990,1e-08,4146.0,4145.9,6.01696348]
[1760297722409,1e-08,4146.0,4145.9,6.11365201]
[1760297727320,1e-08,4146.0,4145.9,5.38336348]
[1760297727521,1e-08,4146.0,4145.9,6.01696348]
[1760297727720,1e-08,4146.0,4145.9,6.11365669]
[1760297729924,1e-08,4146.0,4145.9,6.23365669]
[1760297732023,1e-08,4146.0,4145.9,2.86072151]
[1760297733725,1e-08,4146.0,4145.9,3.49432151]
[1760297734146,1e-08,4146.0,4145.9,5.41432151]
[1760297736536,1e-08,4146.0,4145.4,0.2304]
[1760297736721,1e-08,4146.0,4145.1,0.2299]
[1760297737046,1e-08,4146.0,4145.8,0.002]
[1760297737405,0.10250001,4146.0,4145.8,0.002]
[1760297737624,1.92000001,4146.0,4145.8,0.002]
[1760297737913,4.65172151,4145.9,4145.8,0.002]
[1760297738126,2.2397,4145.9,4145.8,0.002]
[1760297738330,2.0225,4145.9,4145.8,0.002]
[1760297738642,4.65172151,4145.9,4145.8,0.002]
[1760297739641,1.92,4145.9,4145.8,0.002]
[1760297741064,1e-08,4146.0,4145.9,2.41202151]
[1760297741265,1e-08,4146.0,4145.9,3.38820374]
[1760297742084,1e-08,4146.0,4145.9,3.50820374]
[1760297746845,1e-08,4146.0,4145.9,3.50330374]
[1760297747266,1e-08,4146.0,4145.9,2.97582151]
[1760297747451,1e-08,4146.0,4145.9,2.53202151]
[1760297747976,1e-08,4146.0,4145.9,2.95972151]
[1760297748347,1e-08,4146.0,4145.9,2.53202151]
[1760297749057,1e-08,4146.0,4145.9,2.83972151]
[1760297749259,1e-08,4146.0,4145.9,3.36510374]
[1760297755280,1e-08,4146.0,4145.9,2.83972151]
[1760297758992,1e-08,4146.0,4145.9,2.95972151]
[1760297760186,1e-08,4146.0,4145.9,2.53202151]
[1760297760370,1e-08,4146.0,4145.9,2.95972151]
[1760297761294,1e-08,4146.0,4145.9,2.53202151]
[1760297761595,1e-08,4146.0,4145.9,3.02663374]
[1760297762104,1e-08,4146.0,4145.9,3.45433374]
[1760297763931,1e-08,4146.0,4145.9,2.95972151]
[1760297765807,0.05220001,4146.7,4146.4,2.41167679]
[1760297766312,0.001,4146.9,4146.4,2.41167679]
[1760297766684,0.001,4146.9,4146.5,2.41166095]
[1760297766888,0.001,4146.9,4146.6,2.4116044]
[1760297767085,0.001,4146.9,4146.8,2.41149802]
[1760297768230,0.001,4146.9,4146.1,0.4277]
[1760297768415,0.001,4146.9,4146.7,2.41154579]
[1760297768589,0.001,4146.9,4146.6,2.41159939]
[1760297768782,0.001,4146.9,4146.4,2.41169198]
[1760297769316,0.001,4146.9,4146.2,2.41184699]
[1760297769521,0.001,4146.9,4146.8,2.41149802]
[1760297770804,0.0537,4146.9,4146.4,2.41168707]
[1760297771000,0.0527,4146.8,4146.5,2.41164887]
[1760297771342,0.0527,4146.7,4146.3,2.4117516]
[1760297771543,0.001,4146.9,4146.3,2.4117516]
[1760297771717,5.24349011,4146.6,4146.3,2.4117516]
[1760297772052,1.9727,4146.5,4145.8,0.002]
[1760297772341,5.19079011,4146.2,4145.8,0.002]
[1760297772542,1.92,4146.2,4145.9,2.412021]
[1760297773045,1.92,4146.2,4145.8,0.002]
[1760297773253,0.0527,4146.1,4145.8,0.002]
[1760297773529,0.0527,4146.1,4145.9,2.41202151]
[1760297773929,0.0527,4146.1,4145.8,0.002]
[1760297774336,0.0527,4146.1,4145.8,2.41407164]
[1760297775139,0.0527,4146.1,4145.9,2.41201448]
[1760297775634,0.0527,4146.1,4146.0,0.12]
[1760297776636,0.0527,4146.4,4146.0,0.12]
[1760297776836,0.0527,4146.4,4145.5,0.002]
[1760297776837,2.41219606,4145.6,4145.5,0.002]
[1760297777042,5.62800427,4145.6,4145.5,0.002]
[1760297777211,2.35952369,4145.6,4145.5,0.002]
[1760297777409,2.019,4145.6,4145.5,0.002]
[1760297777641,4.43119606,4145.6,4145.5,0.002]
[1760297778867,5.40531975,4145.6,4145.5,0.002]
[1760297786864,6.06992098,4145.6,4145.5,0.002]
[1760297788744,6.1667066,4145.6,4145.5,0.002]
[1760297791172,5.84502208,4145.6,4145.5,0.002]
[1760297791363,5.74823646,4145.6,4145.5,0.002]
[1760297794672,6.06992098,4145.6,4145.5,0.002]
[1760297795577,12.08266008,4145.6,4145.5,0.002]
[1760297795881,1.92,4144.7,4144.1,2.41306916]
[1760297796176,1.914029,4144.7,4144.0,2.41312077]
[1760297796384,2.013029,4144.7,4144.0,2.41312077]
[1760297796551,2.013029,4144.7,4144.1,2.41304816]
[1760297796743,0.099,4144.7,4144.2,2.4129968]
[1760297797065,0.099,4144.7,4144.3,2.4129469]
[1760297797975,6.0127391,4145.2,4144.3,2.41293754]
[1760297798154,0.099,4144.7,4144.2,2.41300402]
[1760297798484,0.099,4144.7,4144.0,2.41311017]
[1760297798781,0.099,4144.7,4144.3,2.41294564]
[1760297799875,0.099,4144.7,4143.7,0.4378]
[1760297799876,0.099,4144.7,4144.2,2.4130018]
[1760297800273,0.099,4144.7,4144.1,2.41301685]
[1760297800479,0.099,4144.7,4144.2,2.4129996]
[1760297800887,0.099,4144.7,4144.3,2.41294884]
[1760297801285,4.33250641,4145.1,4144.4,2.41287101]
[1760297801595,0.099,4144.7,4144.3,2.41293226]
[1760297802199,0.099,4144.7,4143.5,2.41337208]
[1760297802387,0.099,4144.7,4144.3,2.41291464]
[1760297802973,0.099,4144.7,4144.4,2.4128819]
[1760297803495,0.099,4144.7,4144.5,2.41282484]
[1760297804096,2.41229079,4145.5,4144.8,2.41262348]
[1760297804405,0.099,4145.2,4144.7,2.41270251]
[1760297804567,0.099,4145.2,4144.8,2.41264997]
[1760297804763,2.4122656,4145.5,4144.8,2.41264997]
[1760297805088,0.099,4145.1,4144.8,2.41264997]
[1760297805692,0.12,4145.2,4144.7,2.41269843]
[1760297806001,3.04707685,4143.4,4142.5,0.002]
[1760297806306,2.98652235,4143.4,4142.5,0.002]
[1760297806515,4.43267685,4143.4,4142.5,0.002]
[1760297806803,10.87659027,4143.4,4142.5,0.002]
[1760297806979,11.46427163,4143.4,4142.5,0.002]
[1760297808898,12.09787163,4143.4,4142.5,0.002]
[1760297809107,4.96730987,4143.0,4142.5,0.002]
[1760297809401,12.05937541,4143.0,4142.5,0.002]
[1760297809698,12.15857541,4143.0,4142.5,0.002]
[1760297813077,5.41309457,4142.9,4142.5,0.002]
[1760297813564,5.51229457,4142.9,4142.5,0.002]
[1760297814307,5.51229457,4142.9,4141.8,1e-08]
[1760297814308,2.41413131,4142.3,4141.8,1e-08]
[1760297814466,11.20699,4141.9,4141.8,1e-08]
[1760297814673,10.57339,4141.9,4141.8,1e-08]
[1760297814989,2.2468,4141.9,4141.8,1e-08]
[1760297815871,2.3668,4141.9,4141.8,1e-08]
[1760297816711,2.04,4141.9,4141.8,1e-08]
[1760297816919,1.92,4141.9,4141.8,2.4144092]
[1760297817112,0.4445,4142.5,4142.0,2.41428718]
[1760297817421,0.4445,4142.5,4142.1,2.41418665]
[1760297817873,0.12,4142.5,4142.0,2.41428694]
[1760297818073,0.12,4142.5,4142.1,2.41419215]
[1760297818585,0.099,4142.4,4142.1,2.41419215]
[1760297820008,0.099,4142.4,4142.2,2.41416367]
[1760297820507,0.1003,4143.4,4142.6,2.41389553]
[1760297820804,0.12,4143.1,4142.6,2.41389553]
[1760297821009,0.1003,4143.9,4143.0,2.41370987]
[1760297821203,0.12,4143.3,4143.0,2.41370987]
[1760297821407,0.12,4143.3,4142.7,0.12]
[1760297821607,3.0479509,4141.9,4141.8,1e-08]
[1760297821809,2.41464239,4141.4,4141.3,0.001]
[1760297822012,2.5536,4141.0,4140.4,0.14744184]
[1760297822178,2.5536,4140.7,4140.4,0.14744184]
[1760297822379,10.98144802,4140.6,4140.4,0.14744184]
[1760297822596,11.07894802,4140.6,4140.4,0.14744184]
[1760297823598,5.06620892,4140.6,4140.4,0.14744184]
[1760297826205,2.0175,4140.6,4140.4,0.14744184]
[1760297826930,0.0975,4140.6,4140.4,0.14744184]
[1760297827420,2.41494266,4140.9,4140.4,0.14744184]
[1760297827623,0.0975,4140.6,4140.4,0.14744184]
[1760297828000,0.0975,4141.4,4140.4,0.14744184]
[1760297828219,0.0975,4141.4,4140.8,2.41497794]
[1760297828420,0.0975,4141.4,4140.5,0.002]
[1760297828637,0.0975,4141.8,4141.0,2.41487407]
[1760297828928,0.0975,4142.3,4141.0,0.24148741]
[1760297829128,0.0975,4142.6,4141.9,2.41434955]
[1760297830620,1.92,4142.5,4141.1,0.4376]
[1760297830821,0.0975,4142.4,4140.5,0.002]
[1760297830999,2.41437069,4141.9,4141.0,2.41483338]
[1760297831202,1.92,4141.7,4140.9,2.41491822]
[1760297831441,0.0975,4141.6,4140.9,2.41491822]
[1760297831744,0.0975,4141.6,4140.4,0.14744184]
[1760297831745,15.1565195,4141.0,4140.4,1e-08]
[1760297831899,3.04882558,4140.4,4140.3,0.00100001]
[1760297832101,4.96882558,4140.4,4140.3,0.00100001]
[1760297832433,5.06432558,4140.4,4140.3,0.00100001]
[1760297834531,5.48584081,4140.4,4140.3,0.00100001]
[1760297835037,2.41613252,4138.9,4137.5,0.4376]
[1760297835236,2.41612033,4138.9,4137.9,2.41662858]
[1760297835443,2.134,4138.8,4138.0,2.41658822]
[1760297835734,4.55016471,4138.8,4138.0,2.41658822]
[1760297835908,2.63016471,4138.8,4137.9,0.26429286]
[1760297836109,2.63016471,4138.8,4138.0,2.41661344]
[1760297836529,2.41622716,4138.7,4137.5,2.85446625]
[1760297836714,2.41634805,4138.5,4137.6,2.41686001]
[1760297836919,2.41634805,4138.5,4137.5,0.30807663]
[1760297837138,2.41634805,4138.5,4137.5,2.41686342]
[1760297837315,4.33645119,4138.3,4137.1,2.41714669]
[1760297837515,2.41665187,4138.0,4137.1,2.41713634]
[1760297839034,2.41657457,4138.1,4137.2,2.41708099]
[1760297839366,2.41656799,4138.1,4137.2,2.41709091]
[1760297839566,0.099,4138.2,4136.9,2.4172536]
[1760297839765,1.92,4138.1,4137.0,2.65893194]
[1760297839967,4.3365782,4138.1,4137.2,2.41705344]
[1760297840184,4.33663723,4138.0,4137.0,0.24172536]
[1760297840360,4.33657848,4138.1,4137.2,2.41708639]
[1760297840679,2.41665305,4138.0,4137.0,2.41715778]
[1760297840841,0.1993,4137.9,4137.1,2.41713676]
[1760297841033,0.1993,4137.9,4137.2,2.4170819]
[1760297841244,0.1993,4137.9,4137.3,2.41703267]
[1760297841448,0.1993,4137.9,4137.2,2.41708276]